[Event "FIDE World Rapid-ch Open 2018"]
[White "Jumabayev, Rinat"]
[Black "Shubin, Kirill"]
[Site "St. Petersburg"]
[Round "1.92"]
[Annotator "ChessBase"]
[Result "1-0"]
[Date "2018.12.26"]
[WhiteElo "2602"]
[BlackElo "2334"]
[PlyCount "120"]
[TimeControl "900+10"]

1. c4 {[%emt 0:0:0]} e5 {[%emt 0:0:0]} 2. Nc3 {[%emt 0:0:4]} Nc6 {[%emt 0:0:0]
} 3. g3 {[%emt 0:0:35]} g6 {[%emt 0:0:0]} 4. Bg2 {[%emt 0:0:0]} Bg7 {[%emt 0:0:0]} 5. Nf3 {[%emt 0:0:10]} Nge7 {[%emt 0:0:21]} 6. 0-0 {[%emt 0:0:7]} 0-0 {[%emt 0:0:25]} 7. Rb1 {[%emt 0:0:10]} f5 {[%emt 0:0:0]} 8. d3 {[%emt 0:0:29]} d6 {[%emt 0:0:10]} 9. Bd2 {[%emt 0:0:3]} h6 {[%emt 0:1:58]
} 10. b4 {[%emt 0:0:19]} Qd7 {[%emt 0:1:47]} 11. b5 {[%emt 0:0:0]} Nd8 {[%emt 0:0:3]} 12. c5 {[%emt 0:0:1]} d5 {[%emt 0:2:42]} 13. e4 {[%emt 0:0:49]} fxe4 {[%emt 0:0:23]} 14. dxe4 {[%emt 0:0:2]} d4 {[%emt 0:0:0]} 15. Qb3+ {[%emt 0:2:41]} Kh7 {[%emt 0:0:27]} 16. Nd5 {[%emt 0:0:16]} c6 {[%emt 0:0:8]} 17. bxc6 {[%emt 0:0:27]} bxc6 {[%emt 0:0:1]} 18. Nb4 {[%emt 0:0:1]
} Qc7 {[%emt 0:1:23]} 19. Qa3 {[%emt 0:1:24]} a5 {[%emt 0:0:0]} 20. Nd3 {[%emt 0:0:1]} Bg4 {[%emt 0:0:5]} 21. Nb2 {[%emt 0:0:16]} Ne6 {[%emt 0:0:58]} 22. Nc4 {[%emt 0:0:32]} d3 {[%emt 0:0:26]} 23. Qxd3 {[%emt 0:0:25]
} Nxc5 {[%emt 0:0:20]} 24. Qe3 {[%emt 0:0:13]} Ne6 {[%emt 0:0:0]} 25. Bc3 {[%emt 0:0:14]} Bxf3 {[%emt 0:0:52]} 26. Bxf3 {[%emt 0:0:1]} c5 {[%emt 0:0:41]} 27. Rb2 {[%emt 0:0:8]} Nd4 {[%emt 0:0:16]} 28. Bg2 {[%emt 0:0:1]
} Nec6 {[%emt 0:0:49]} 29. Rfb1 {[%emt 0:0:2]} Ra7 {[%emt 0:0:0]} 30. a3 {[%emt 0:0:35]} a4 {[%emt 0:0:9]} 31. Qd3 {[%emt 0:0:7]} Qf7 {[%emt 0:0:28]} 32. Ne3 {[%emt 0:0:27]} Nf3+ {[%emt 0:0:9]} 33. Kh1 {[%emt 0:0:15]
} Ncd4 {[%emt 0:0:9]} 34. Qc4 {[%emt 0:0:51]} Ne6 {[%emt 0:0:0]} 35. Rb6 {[%emt 0:0:24]} Nfd4 {[%emt 0:0:1]} 36. Rf1 {[%emt 0:0:11]} Re8 {[%emt 0:0:17]} 37. Nd5 {[%emt 0:0:5]} Rb7 {[%emt 0:0:6]} 38. Rxb7 {[%emt 0:1:6]
} Qxb7 {[%emt 0:0:1]} 39. f4 {[%emt 0:0:10]} exf4 {[%emt 0:0:0]} 40. gxf4 {[%emt 0:0:1]} Qb5 {[%emt 0:0:7]} 41. Qa2 {[%emt 0:0:16]} Rf8 {[%emt 0:0:19]} 42. f5 {[%emt 0:0:21]} gxf5 {[%emt 0:0:12]} 43. exf5 {[%emt 0:0:1]
} Nxf5 {[%emt 0:0:7]} 44. Qc2 {[%emt 0:0:8]} Bxc3 {[%emt 0:0:0]} 45. Rxf5 {[%emt 0:0:12]} Rxf5 {[%emt 0:0:13]} 46. Qxf5+ {[%emt 0:0:0]} Kg7 {[%emt 0:0:2]} 47. Nxc3 {[%emt 0:0:4]} Qc4 {[%emt 0:0:5]} 48. Qe5+ {[%emt 0:0:23]} Kf7 {[%emt 0:0:6]} 49. h3 {[%emt 0:0:10]} Qd3 {[%emt 0:0:25]
} 50. Ne4 {[%emt 0:0:13]} Qd4 {[%emt 0:0:12]} 51. Qxd4 {[%emt 0:0:15]
} Nxd4 {[%emt 0:0:8]} 52. Nd2 {[%emt 0:0:17]} Ke6 {[%emt 0:0:0]} 53. Kg1 {[%emt 0:0:4]} Nc2 {[%emt 0:0:3]} 54. Nc4 {[%emt 0:0:0]} Nd4 {[%emt 0:0:10]} 55. Kf2 {[%emt 0:0:1]} Kf5 {[%emt 0:0:4]} 56. Ke3 {[%emt 0:0:3]
} Kg5 {[%emt 0:0:2]} 57. Bb7 {[%emt 0:0:10]} Kh4 {[%emt 0:0:0]} 58. Bc8 {[%emt 0:0:1]} Kg3 {[%emt 0:0:1]} 59. Ke4 {[%emt 0:0:1]} Nc6 {[%emt 0:0:21]} 60. Bd7 {[%emt 0:0:4]} Nd4 {[%emt 0:0:2]} 1-0

[Event "FIDE World Rapid-ch Open 2018"]
[White "Mamatov, Melis"]
[Black "Miton, Kamil"]
[Site "St. Petersburg"]
[Round "1.93"]
[Annotator "ChessBase"]
[Result "0-1"]
[Date "2018.12.26"]
[WhiteElo "2223"]
[BlackElo "2588"]
[PlyCount "60"]
[TimeControl "900+10"]

1. e4 {[%emt 0:0:0]} c5 {[%emt 0:0:0]} 2. Nf3 {[%emt 0:0:7]} d6 {[%emt 0:0:0]} 3. d4 {[%emt 0:0:3]} cxd4 {[%emt 0:0:0]} 4. Nxd4 {[%emt 0:0:2]} Nf6 {[%emt 0:0:0]} 5. Nc3 {[%emt 0:0:2]} Bd7 {[%emt 0:0:1]} 6. Bg5 {[%emt 0:0:26]
} e6 {[%emt 0:0:3]} 7. Qd2 {[%emt 0:1:54]} a6 {[%emt 0:0:3]} 8. f4 {[%emt 0:1:48]} h6 {[%emt 0:0:4]} 9. Bxf6 {[%emt 0:0:33]} Qxf6 {[%emt 0:0:4]
} 10. 0-0-0 {[%emt 0:0:27]} Qd8 {[%emt 0:0:3]} 11. e5 {[%emt 0:0:17]
} dxe5 {[%emt 0:0:37]} 12. fxe5 {[%emt 0:0:1]} Nc6 {[%emt 0:0:0]} 13. Nf3 {[%emt 0:1:31]} Bb4 {[%emt 0:0:25]} 14. a3 {[%emt 0:2:16]} Ba5 {[%emt 0:0:3]} 15. Qe3 {[%emt 0:0:56]} Qb6 {[%emt 0:2:5]} 16. Qd3 {[%emt 0:0:57]
} 0-0 {[%emt 0:2:56]} 17. Ne4 {[%emt 0:0:13]} Rfd8 {[%emt 0:0:0]} 18. b4 {[%emt 0:2:36]} Bxb4 {[%emt 0:0:40]} 19. axb4 {[%emt 0:0:0]} Nxb4 {[%emt 0:0:2]} 20. Qb3 {[%emt 0:0:37]} Rac8 {[%emt 0:0:30]} 21. Bd3 {[%emt 0:2:2]
} Qa5 {[%emt 0:0:36]} 22. Kb1 {[%emt 0:1:17]} Ba4 {[%emt 0:0:0]} 23. Qb2 {[%emt 0:0:2]} Nxd3 {[%emt 0:0:35]} 24. Rxd3 {[%emt 0:0:27]} Rxd3 {[%emt 0:0:38]} 25. cxd3 {[%emt 0:0:4]} Bc2+ {[%emt 0:0:5]} 26. Qxc2 {[%emt 0:0:3]} Rxc2 {[%emt 0:0:1]} 27. Kxc2 {[%emt 0:0:1]} Qa2+ {[%emt 0:0:0]} 28. Kc3 {[%emt 0:0:9]} Qxg2 {[%emt 0:0:5]} 29. Nf6+ {[%emt 0:0:12]
} Kf8 {[%emt 0:0:12]} 30. Nh7+ {[%emt 0:0:27]} Ke7 {[%emt 0:0:20]} 0-1

[Event "FIDE World Rapid-ch Open 2018"]
[White "Bindrich, Falko"]
[Black "Yeritsyan, Aram"]
[Site "St. Petersburg"]
[Round "1.94"]
[Annotator "ChessBase"]
[Result "1-0"]
[Date "2018.12.26"]
[WhiteElo "2606"]
[BlackElo "2372"]
[PlyCount "97"]
[TimeControl "900+10"]

1. d4 {[%emt 0:0:0]} Nf6 {[%emt 0:0:0]} 2. c4 {[%emt 0:0:0]} e6 {[%emt 0:0:0]} 3. g3 {[%emt 0:0:0]} Bb4+ {[%emt 0:0:2]} 4. Bd2 {[%emt 0:0:0]} c5 {[%emt 0:0:5]} 5. Bg2 {[%emt 0:0:12]} 0-0 {[%emt 0:0:4]} 6. Nf3 {[%emt 0:0:0]} d6 {[%emt 0:1:16]} 7. 0-0 {[%emt 0:0:52]} Bxd2 {[%emt 0:0:2]} 8. Qxd2 {[%emt 0:0:7]} cxd4 {[%emt 0:0:57]} 9. Nxd4 {[%emt 0:0:6]} a6 {[%emt 0:0:4]
} 10. Nc3 {[%emt 0:0:16]} Qc7 {[%emt 0:0:2]} 11. Rac1 {[%emt 0:0:37]
} Rd8 {[%emt 0:1:0]} 12. Rfd1 {[%emt 0:0:9]} Nbd7 {[%emt 0:0:0]} 13. Nb3 {[%emt 0:2:8]} Nc5 {[%emt 0:2:52]} 14. Nxc5 {[%emt 0:0:53]} Qxc5 {[%emt 0:0:2]} 15. Na4 {[%emt 0:1:12]} Qc7 {[%emt 0:0:1]} 16. Qb4 {[%emt 0:0:2]
} Rb8 {[%emt 0:1:37]} 17. Qb6 {[%emt 0:1:55]} Qxb6 {[%emt 0:0:0]} 18. Nxb6 {[%emt 0:0:2]} Kf8 {[%emt 0:1:59]} 19. c5 {[%emt 0:1:59]} d5 {[%emt 0:0:2]} 20. e4 {[%emt 0:0:5]} Bd7 {[%emt 0:0:21]} 21. exd5 {[%emt 0:0:11]
} exd5 {[%emt 0:0:2]} 22. Nxd5 {[%emt 0:0:41]} Nxd5 {[%emt 0:0:0]} 23. Rxd5 {[%emt 0:2:8]} Bc6 {[%emt 0:0:3]} 24. Rd6 {[%emt 0:0:3]} Rxd6 {[%emt 0:1:10]} 25. cxd6 {[%emt 0:0:1]} Bxg2 {[%emt 0:0:1]} 26. Kxg2 {[%emt 0:0:1]} Rd8 {[%emt 0:0:1]} 27. Rc7 {[%emt 0:0:10]} Rxd6 {[%emt 0:0:0]} 28. Rxb7 {[%emt 0:0:1]} h5 {[%emt 0:0:28]} 29. b4 {[%emt 0:0:25]} Rd2 {[%emt 0:0:50]} 30. a4 {[%emt 0:0:1]} Ra2 {[%emt 0:0:4]} 31. a5 {[%emt 0:0:2]
} g6 {[%emt 0:0:4]} 32. h4 {[%emt 0:0:13]} Rb2 {[%emt 0:0:6]
} 33. Kf3 {[%emt 0:0:26]} Kg7 {[%emt 0:0:1]} 34. Rb6 {[%emt 0:0:7]} Rb3+ {[%emt 0:0:43]
} 35. Ke4 {[%emt 0:0:1]} Rb2 {[%emt 0:0:2]} 36. Ke3 {[%emt 0:0:0]} Kh6 {[%emt 0:0:9]} 37. Rb7 {[%emt 0:0:40]} Kg7 {[%emt 0:0:4]} 38. Rb6 {[%emt 0:0:19]} Kh6 {[%emt 0:0:2]} 39. Kf3 {[%emt 0:0:1]} Kg7 {[%emt 0:0:1]
} 40. Ke4 {[%emt 0:0:11]} Kh6 {[%emt 0:0:25]} 41. Kd5 {[%emt 0:0:0]} f5 {[%emt 0:1:23]} 42. f4 {[%emt 0:1:30]} Rb3 {[%emt 0:0:1]} 43. Kc6 {[%emt 0:0:0]} Rc3+ {[%emt 0:0:9]} 44. Kb7 {[%emt 0:0:10]} Rxg3 {[%emt 0:0:4]
} 45. Rxa6 {[%emt 0:0:2]} Rg4 {[%emt 0:0:22]} 46. Rb6 {[%emt 0:0:2]
} Rxh4 {[%emt 0:0:6]} 47. a6 {[%emt 0:0:2]} Rh1 {[%emt 0:0:0]} 48. a7 {[%emt 0:0:1]} Ra1 {[%emt 0:0:2]} 49. Ra6 {[%emt 0:0:1]} 1-0

[Event "FIDE World Rapid-ch Open 2018"]
[White "Nihal Sarin"]
[Black "Bosiocic, Marin"]
[Site "St. Petersburg"]
[Round "1.95"]
[Annotator "ChessBase"]
[Result "0-1"]
[Date "2018.12.26"]
[WhiteElo "2576"]
[BlackElo "2599"]
[PlyCount "68"]
[TimeControl "900+10"]

1. Nf3 {[%emt 0:0:0]} d5 {[%emt 0:0:0]} 2. e3 {[%emt 0:0:0]} Nf6 {[%emt 0:0:0]
} 3. c4 {[%emt 0:0:0]} e6 {[%emt 0:0:0]} 4. b3 {[%emt 0:0:0]} Be7 {[%emt 0:0:1]} 5. Bb2 {[%emt 0:0:2]} 0-0 {[%emt 0:0:2]} 6. Nc3 {[%emt 0:0:4]
} c5 {[%emt 0:0:43]} 7. cxd5 {[%emt 0:0:6]} exd5 {[%emt 0:0:0]} 8. d4 {[%emt 0:0:6]} b6 {[%emt 0:0:3]} 9. Bd3 {[%emt 0:0:14]} Bb7 {[%emt 0:0:8]
} 10. 0-0 {[%emt 0:0:4]} Nc6 {[%emt 0:0:27]} 11. dxc5 {[%emt 0:0:47]
} bxc5 {[%emt 0:0:13]} 12. Rc1 {[%emt 0:0:2]} Nb4 {[%emt 0:0:0]} 13. Bb1 {[%emt 0:0:25]} a5 {[%emt 0:3:44]} 14. Na4 {[%emt 0:0:45]} Ne4 {[%emt 0:0:6]} 15. Nd2 {[%emt 0:0:46]} Nxd2 {[%emt 0:2:2]} 16. Qxd2 {[%emt 0:0:2]
} Rc8 {[%emt 0:2:1]} 17. Rfd1 {[%emt 0:1:3]} d4 {[%emt 0:0:0]} 18. exd4 {[%emt 0:1:27]} Qd5 {[%emt 0:0:8]} 19. f4 {[%emt 0:0:1]} Qh5 {[%emt 0:2:34]} 20. Nxc5 {[%emt 0:1:22]} Ba8 {[%emt 0:0:3]} 21. a3 {[%emt 0:1:55]
} Nd5 {[%emt 0:0:2]} 22. Be4 {[%emt 0:0:11]} Bd6 {[%emt 0:0:0]} 23. g3 {[%emt 0:2:25]} Qg4 {[%emt 0:0:42]} 24. Rf1 {[%emt 0:1:28]} Rfe8 {[%emt 0:0:15]} 25. Rce1 {[%emt 0:5:0]} Nxf4 {[%emt 0:1:8]} 26. Bxa8 {[%emt 0:0:14]
} Ne2+ {[%emt 0:0:41]} 27. Kh1 {[%emt 0:0:12]} Rxa8 {[%emt 0:0:0]} 28. Rf2 {[%emt 0:0:34]} Nxg3+ {[%emt 0:0:14]} 29. hxg3 {[%emt 0:0:0]} Bxg3 {[%emt 0:0:1]} 30. Ref1 {[%emt 0:0:20]} Bxf2 {[%emt 0:0:57]} 31. Rxf2 {[%emt 0:0:15]} Rad8 {[%emt 0:0:10]} 32. Qf4 {[%emt 0:0:15]} Re1+ {[%emt 0:0:14]
} 33. Kh2 {[%emt 0:0:1]} Qh5+ {[%emt 0:0:10]} 34. Kg3 {[%emt 0:0:2]
} Rg1+ {[%emt 0:0:4]} 0-1

[Event "FIDE World Rapid-ch Open 2018"]
[White "Moiseenko, Vadim"]
[Black "Makoveev, Ilya"]
[Site "St. Petersburg"]
[Round "1.96"]
[Annotator "ChessBase"]
[Result "1-0"]
[Date "2018.12.26"]
[WhiteElo "2501"]
[BlackElo "2257"]
[PlyCount "97"]
[TimeControl "900+10"]

1. e4 {[%emt 0:0:0]} c5 {[%emt 0:0:0]} 2. Nf3 {[%emt 0:0:0]} d6 {[%emt 0:0:0]} 3. d4 {[%emt 0:0:0]} cxd4 {[%emt 0:0:0]} 4. Nxd4 {[%emt 0:0:0]} Nf6 {[%emt 0:0:0]} 5. Nc3 {[%emt 0:0:0]} a6 {[%emt 0:0:0]} 6. Be3 {[%emt 0:0:2]
} e5 {[%emt 0:0:3]} 7. Nf3 {[%emt 0:0:1]} Be7 {[%emt 0:0:10]
} 8. Bc4 {[%emt 0:0:2]} 0-0 {[%emt 0:0:23]} 9. 0-0 {[%emt 0:0:11]} Be6 {[%emt 0:1:15]
} 10. Bb3 {[%emt 0:0:3]} Nc6 {[%emt 0:0:9]} 11. Qe2 {[%emt 0:0:0]} Rc8 {[%emt 0:0:33]} 12. Rfd1 {[%emt 0:0:15]} Nd7 {[%emt 0:1:1]} 13. Nd5 {[%emt 0:1:7]} Na5 {[%emt 0:5:39]} 14. Nxe7+ {[%emt 0:1:57]} Qxe7 {[%emt 0:0:1]
} 15. Bxe6 {[%emt 0:2:24]} fxe6 {[%emt 0:1:52]} 16. b3 {[%emt 0:0:16]
} Nf6 {[%emt 0:1:18]} 17. Qd2 {[%emt 0:1:4]} Nc6 {[%emt 0:0:0]} 18. Qxd6 {[%emt 0:0:6]} Qxd6 {[%emt 0:1:20]} 19. Rxd6 {[%emt 0:0:2]} Nxe4 {[%emt 0:0:2]} 20. Rxe6 {[%emt 0:1:8]} Kf7 {[%emt 0:0:8]} 21. Rxc6 {[%emt 0:0:1]
} bxc6 {[%emt 0:0:1]} 22. Nxe5+ {[%emt 0:0:3]} Kg8 {[%emt 0:0:0]} 23. g3 {[%emt 0:0:24]} Nc3 {[%emt 0:0:42]} 24. Kg2 {[%emt 0:0:34]} Rfd8 {[%emt 0:0:17]} 25. a4 {[%emt 0:0:37]} Rd5 {[%emt 0:0:37]} 26. Nd3 Rxd3 {[%emt 0:0:58]} 27. cxd3 Rb8 28. Ra3 {[%emt 0:1:32]} Nb1 {[%emt 0:0:20]} 29. Ra2 {[%emt 0:0:1]} Rxb3 {[%emt 0:0:5]} 30. Rc2 {[%emt 0:0:1]} Nc3 {[%emt 0:0:12]
} 31. a5 {[%emt 0:0:28]} Kf7 {[%emt 0:0:24]} 32. Bd2 {[%emt 0:0:0]} Nb1 {[%emt 0:0:10]} 33. Be1 {[%emt 0:0:1]} Rxd3 {[%emt 0:0:8]} 34. Rxc6 {[%emt 0:0:1]} Rd1 {[%emt 0:0:5]} 35. Bb4 {[%emt 0:0:33]} Rd4 {[%emt 0:0:4]
} 36. Rb6 {[%emt 0:0:3]} Rc4 {[%emt 0:0:24]} 37. Rb7+ {[%emt 0:0:41]
} Kg8 {[%emt 0:0:10]} 38. Bd6 {[%emt 0:0:30]} Nd2 {[%emt 0:0:0]} 39. Be5 {[%emt 0:0:56]} Rg4 {[%emt 0:0:5]} 40. f4 {[%emt 0:1:36]} Nc4 {[%emt 0:0:11]} 41. Bc3 {[%emt 0:0:5]} Rg6 {[%emt 0:0:14]} 42. Kf3 {[%emt 0:0:8]
} h5 {[%emt 0:0:10]} 43. Rc7 {[%emt 0:0:52]} Na3 {[%emt 0:0:0]} 44. Be5 {[%emt 0:0:14]} Nb5 {[%emt 0:0:8]} 45. Rd7 {[%emt 0:0:5]} Kh7 {[%emt 0:0:12]} 46. h3 {[%emt 0:0:6]} Na3 {[%emt 0:0:10]} 47. f5 {[%emt 0:0:0]} Rg5 {[%emt 0:0:9]} 48. Kf4 {[%emt 0:0:7]} Kh6 {[%emt 0:0:4]} 49. Rd8 {[%emt 0:0:13]} 1-0

[Event "FIDE World Rapid-ch Open 2018"]
[White "Gaifullin, Artur"]
[Black "Gareyev, Timur"]
[Site "St. Petersburg"]
[Round "1.97"]
[Annotator "ChessBase"]
[Result "0-1"]
[Date "2018.12.26"]
[WhiteElo "2448"]
[BlackElo "2569"]
[PlyCount "80"]
[TimeControl "900+10"]

1. d4 {[%emt 0:0:0]} d6 {[%emt 0:2:14]} 2. Nf3 {[%emt 0:0:1]} Bf5 {[%emt 0:0:5]
} 3. g3 {[%emt 0:1:0]} Nf6 {[%emt 0:0:5]} 4. Bg2 {[%emt 0:0:0]} Qc8 {[%emt 0:0:25]} 5. h3 {[%emt 0:0:45]} c5 {[%emt 0:0:12]} 6. d5 {[%emt 0:0:20]
} Na6 {[%emt 0:0:19]} 7. Nfd2 {[%emt 0:0:53]} g6 {[%emt 0:0:0]} 8. e4 {[%emt 0:0:31]} Bd7 {[%emt 0:0:1]} 9. Nc3 {[%emt 0:0:2]} Bg7 {[%emt 0:0:7]
} 10. a4 {[%emt 0:0:39]} 0-0 {[%emt 0:0:8]} 11. Ra3 {[%emt 0:0:0]} Nb4 {[%emt 0:0:39]} 12. Nc4 {[%emt 0:0:24]} b6 {[%emt 0:0:51]} 13. Be3 {[%emt 0:0:34]} Rb8 {[%emt 0:0:7]} 14. g4 {[%emt 0:0:26]} a6 {[%emt 0:0:0]} 15. e5 {[%emt 0:0:56]} Ne8 {[%emt 0:0:18]} 16. a5 {[%emt 0:1:28]} bxa5 17. 0-0 {[%emt 0:1:39]} Qc7 {[%emt 0:2:49]} 18. Re1 {[%emt 0:0:23]} dxe5 {[%emt 0:1:16]} 19. Nb1 {[%emt 0:4:7]} Bb5 {[%emt 0:0:28]} 20. Nxa5 {[%emt 0:0:15]
} Nd6 {[%emt 0:0:1]} 21. Nc3 {[%emt 0:0:13]} f5 {[%emt 0:0:0]} 22. Nb3 {[%emt 0:0:12]} c4 {[%emt 0:0:39]} 23. Nc5 {[%emt 0:0:4]} f4 {[%emt 0:0:1]
} 24. Ne6 {[%emt 0:0:3]} fxe3 {[%emt 0:0:0]} 25. Nxc7 {[%emt 0:0:2]
} exf2+ {[%emt 0:0:2]} 26. Kh1 {[%emt 0:0:36]} fxe1=Q+ {[%emt 0:0:3]
} 27. Qxe1 {[%emt 0:0:1]} Nxc2 {[%emt 0:0:2]} 28. Qc1 {[%emt 0:0:31]
} Nxa3 {[%emt 0:0:6]} 29. bxa3 {[%emt 0:0:1]} Bd7 {[%emt 0:0:0]} 30. Nxa6 {[%emt 0:0:9]} Rb3 {[%emt 0:0:33]} 31. Nc5 {[%emt 0:0:7]} e4 {[%emt 0:0:1]} 32. N3xe4 {[%emt 0:0:50]} Nxe4 {[%emt 0:0:10]} 33. Bxe4 {[%emt 0:0:33]
} Rxh3+ {[%emt 0:0:11]} 34. Kg2 {[%emt 0:0:1]} Rc3 {[%emt 0:0:0]} 35. Qg5 {[%emt 0:0:28]} Bd4 {[%emt 0:0:18]} 36. Qd2 {[%emt 0:1:7]} Rf2+ {[%emt 0:1:50]} 37. Qxf2 {[%emt 0:0:1]} Bxf2 {[%emt 0:0:2]} 38. Kxf2 {[%emt 0:0:2]} Bxg4 {[%emt 0:0:11]} 39. a4 {[%emt 0:0:1]} Ra3 {[%emt 0:0:0]} 40. Ke1 {[%emt 0:0:26]} Bf5 {[%emt 0:0:14]} 0-1

[Event "FIDE World Rapid-ch Open 2018"]
[White "Indjic, Aleksandar"]
[Black "Masrahi, Abdulrahman A"]
[Site "St. Petersburg"]
[Round "1.98"]
[Annotator "ChessBase"]
[Result "1-0"]
[Date "2018.12.26"]
[WhiteElo "2620"]
[BlackElo "1903"]
[PlyCount "107"]
[TimeControl "900+10"]

1. e4 {[%emt 0:0:0]} e5 {[%emt 0:0:0]} 2. Nf3 {[%emt 0:0:3]} Nc6 {[%emt 0:0:0]
} 3. d4 {[%emt 0:0:8]} exd4 {[%emt 0:0:0]} 4. Nxd4 {[%emt 0:0:0]} Bc5 {[%emt 0:0:8]} 5. Nxc6 {[%emt 0:0:12]} bxc6 {[%emt 0:0:16]} 6. Bd3 {[%emt 0:0:10]} Qh4 {[%emt 0:0:15]} 7. Qe2 {[%emt 0:0:20]} Nf6 {[%emt 0:0:0]} 8. Be3 {[%emt 0:0:3]} Bxe3 {[%emt 0:1:12]} 9. Qxe3 {[%emt 0:0:2]} 0-0 {[%emt 0:0:21]} 10. Nd2 {[%emt 0:0:40]} d5 {[%emt 0:0:36]} 11. 0-0 {[%emt 0:2:56]
} Re8 {[%emt 0:1:51]} 12. f3 {[%emt 0:0:4]} dxe4 {[%emt 0:0:0]} 13. Nxe4 {[%emt 0:0:47]} Bf5 {[%emt 0:1:50]} 14. g3 {[%emt 0:0:13]} Nd5 {[%emt 0:0:17]} 15. Qf2 {[%emt 0:0:27]} Qe7 {[%emt 0:1:26]} 16. Rfe1 {[%emt 0:0:5]
} Qb4 {[%emt 0:0:12]} 17. c3 {[%emt 0:0:37]} Qb6 {[%emt 0:0:0]} 18. Re2 {[%emt 0:0:15]} Bxe4 {[%emt 0:2:24]} 19. Bxe4 {[%emt 0:0:14]} f5 {[%emt 0:0:4]} 20. Qxb6 {[%emt 0:0:30]} axb6 {[%emt 0:0:8]} 21. Bd3 {[%emt 0:0:3]
} Rxe2 {[%emt 0:0:10]} 22. Bxe2 {[%emt 0:0:1]} f4 {[%emt 0:0:0]} 23. Kf2 {[%emt 0:0:6]} Kf7 {[%emt 0:0:26]} 24. a3 {[%emt 0:0:3]} Kf6 {[%emt 0:0:34]} 25. Rd1 {[%emt 0:0:8]} Re8 {[%emt 0:0:55]} 26. Rd4 {[%emt 0:0:25]
} g5 {[%emt 0:0:33]} 27. c4 {[%emt 0:0:4]} fxg3+ {[%emt 0:0:0]} 28. hxg3 {[%emt 0:0:1]} Ne7 {[%emt 0:1:27]} 29. Rd7 {[%emt 0:0:7]} Rc8 {[%emt 0:0:13]} 30. Bf1 {[%emt 0:0:2]} g4 {[%emt 0:0:32]} 31. fxg4 {[%emt 0:0:21]
} Ke6 {[%emt 0:0:1]} 32. Rd1 {[%emt 0:0:14]} Ng6 {[%emt 0:0:0]} 33. g5 {[%emt 0:0:45]} Rf8+ {[%emt 0:0:15]} 34. Ke3 {[%emt 0:0:3]} Rf7 {[%emt 0:0:24]} 35. c5 {[%emt 0:0:19]} Kf5 {[%emt 0:0:14]} 36. Bg2 {[%emt 0:0:0]} Re7+ {[%emt 0:0:16]} 37. Kd2 {[%emt 0:2:12]} Re5 {[%emt 0:0:34]} 38. cxb6 {[%emt 0:0:7]} cxb6 {[%emt 0:0:5]} 39. Bxc6 {[%emt 0:0:7]} Kxg5 {[%emt 0:0:4]
} 40. Rh1 {[%emt 0:0:5]} h5 {[%emt 0:0:11]} 41. Bf3 {[%emt 0:0:0]} h4 {[%emt 0:0:6]} 42. gxh4+ {[%emt 0:0:7]} Nxh4 {[%emt 0:0:3]} 43. Be2 {[%emt 0:0:10]} Nf5 {[%emt 0:0:14]} 44. Bd3 {[%emt 0:0:4]} Kf4 {[%emt 0:0:53]
} 45. Rf1+ {[%emt 0:0:2]} Kg5 {[%emt 0:0:1]} 46. Rxf5+ {[%emt 0:0:10]
} Rxf5 {[%emt 0:0:2]} 47. Bxf5 {[%emt 0:0:1]} Kxf5 {[%emt 0:0:0]} 48. Kc3 {[%emt 0:0:2]} Ke5 {[%emt 0:0:1]} 49. Kc4 {[%emt 0:0:1]} Kd6 {[%emt 0:0:12]} 50. Kb5 {[%emt 0:0:2]} Kc7 {[%emt 0:0:5]} 51. b4 {[%emt 0:0:15]
} Kb7 {[%emt 0:0:11]} 52. a4 {[%emt 0:0:1]} Kc7 {[%emt 0:0:0]} 53. Ka6 {[%emt 0:0:3]} Kc6 {[%emt 0:0:2]} 54. b5+ {[%emt 0:0:1]} 1-0

[Event "FIDE World Rapid-ch Open 2018"]
[White "Al Thebaiti, Ahmed M"]
[Black "Yuffa, Daniil"]
[Site "St. Petersburg"]
[Round "1.99"]
[Annotator "ChessBase"]
[Result "0-1"]
[Date "2018.12.26"]
[WhiteElo "1976"]
[BlackElo "2572"]
[PlyCount "44"]
[TimeControl "900+10"]

1. d4 {[%emt 0:0:0]} Nf6 {[%emt 0:2:3]} 2. Bf4 {[%emt 0:0:0]} g6 {[%emt 0:0:3]
} 3. e3 {[%emt 0:0:0]} Bg7 {[%emt 0:0:2]} 4. Nc3 {[%emt 0:0:0]} d6 {[%emt 0:0:6]} 5. h4 {[%emt 0:0:5]} Nbd7 {[%emt 0:0:17]} 6. d5 {[%emt 0:1:26]
} c6 {[%emt 0:0:27]} 7. dxc6 {[%emt 0:1:10]} bxc6 {[%emt 0:0:0]} 8. Nf3 {[%emt 0:0:11]} Rb8 {[%emt 0:0:12]} 9. Bc4 {[%emt 0:1:7]} 0-0 {[%emt 0:0:50]
} 10. h5 {[%emt 0:2:39]} Nxh5 {[%emt 0:0:19]} 11. Rxh5 {[%emt 0:2:47]
} gxh5 {[%emt 0:0:2]} 12. Ng5 {[%emt 0:1:26]} Nf6 {[%emt 0:0:0]} 13. Bb3 {[%emt 0:1:29]} Bf5 {[%emt 0:1:7]} 14. Qf3 {[%emt 0:0:45]} Qd7 {[%emt 0:0:39]} 15. Qg3 {[%emt 0:0:37]} e5 {[%emt 0:0:16]} 16. 0-0-0 {[%emt 0:2:33]
} exf4 {[%emt 0:0:2]} 17. Qxf4 {[%emt 0:0:3]} d5 {[%emt 0:0:0]} 18. e4 {[%emt 0:0:28]} Bg6 {[%emt 0:0:16]} 19. exd5 {[%emt 0:0:29]} Nxd5 {[%emt 0:0:4]} 20. Nxd5 {[%emt 0:0:31]} cxd5 {[%emt 0:0:2]} 21. Rxd5 {[%emt 0:0:16]} Bxb2+ {[%emt 0:0:21]} 22. Kb1 {[%emt 0:0:13]} Qxd5 {[%emt 0:0:0]} 0-1

[Event "FIDE World Rapid-ch Open 2018"]
[White "Zvjaginsev, Vadim"]
[Black "khayat, Abdullah F"]
[Site "St. Petersburg"]
[Round "1.100"]
[Annotator "ChessBase"]
[Result "1-0"]
[Date "2018.12.26"]
[WhiteElo "2642"]
[BlackElo "1723"]
[PlyCount "83"]
[TimeControl "900+10"]

1. Nf3 {[%emt 0:0:0]} Nf6 {[%emt 0:0:4]} 2. g3 {[%emt 0:0:2]} g6 {[%emt 0:0:14]
} 3. Bg2 {[%emt 0:0:3]} Bg7 {[%emt 0:0:3]} 4. 0-0 {[%emt 0:0:0]} 0-0 {[%emt 0:0:17]} 5. d4 {[%emt 0:0:2]} d5 {[%emt 0:0:24]} 6. c3 {[%emt 0:0:4]
} Re8 {[%emt 0:0:50]} 7. Bf4 {[%emt 0:1:4]} c6 {[%emt 0:0:43]
} 8. Nbd2 {[%emt 0:0:20]} Nh5 {[%emt 0:0:28]} 9. Be5 {[%emt 0:0:33]} f6 {[%emt 0:1:58]
} 10. Bxb8 {[%emt 0:0:3]} Rxb8 {[%emt 0:0:2]} 11. e4 {[%emt 0:0:1]
} dxe4 {[%emt 0:3:22]} 12. Nxe4 {[%emt 0:0:7]} e5 {[%emt 0:0:0]} 13. dxe5 {[%emt 0:2:2]} Qxd1 {[%emt 0:2:12]} 14. Rfxd1 {[%emt 0:0:14]} fxe5 {[%emt 0:0:8]} 15. Nd6 {[%emt 0:2:15]} Rd8 {[%emt 0:2:10]} 16. Ng5 {[%emt 0:1:17]
} Nf6 {[%emt 0:0:45]} 17. Bf1 {[%emt 0:2:8]} Nd5 {[%emt 0:0:0]} 18. Nxc8 {[%emt 0:0:54]} Rbxc8 {[%emt 0:0:20]} 19. Bh3 {[%emt 0:0:3]} Rb8 {[%emt 0:1:10]} 20. Be6+ {[%emt 0:0:6]} Kf8 {[%emt 0:0:13]} 21. Bxd5 {[%emt 0:0:13]
} cxd5 {[%emt 0:0:11]} 22. Ne6+ {[%emt 0:0:4]} Kf7 {[%emt 0:0:0]} 23. Nxd8+ {[%emt 0:0:6]} Rxd8 {[%emt 0:0:2]} 24. Kf1 {[%emt 0:0:0]} b6 {[%emt 0:0:13]} 25. Ke2 {[%emt 0:0:6]} Ke6 {[%emt 0:0:2]} 26. Rac1 {[%emt 0:0:54]} g5 {[%emt 0:0:21]} 27. f3 {[%emt 0:0:13]} h6 {[%emt 0:0:2]
} 28. c4 {[%emt 0:0:12]} d4 {[%emt 0:0:8]} 29. h3 {[%emt 0:0:36]} Kd6 {[%emt 0:0:34]
} 30. b4 {[%emt 0:0:6]} a6 {[%emt 0:0:15]} 31. c5+ {[%emt 0:0:0]} bxc5 {[%emt 0:0:4]} 32. Rxc5 {[%emt 0:0:2]} Rb8 {[%emt 0:0:10]} 33. a3 {[%emt 0:0:4]} Bf8 {[%emt 0:0:7]} 34. Kd3 {[%emt 0:0:9]} Rb6 {[%emt 0:0:5]
} 35. Ke4 {[%emt 0:0:5]} Bg7 {[%emt 0:0:28]} 36. Rdc1 {[%emt 0:0:4]
} Kd7 {[%emt 0:0:11]} 37. a4 {[%emt 0:0:13]} Ke6 {[%emt 0:0:0]} 38. Rc6+ {[%emt 0:0:2]} Rxc6 {[%emt 0:0:4]} 39. Rxc6+ {[%emt 0:0:2]} Kd7 {[%emt 0:0:13]} 40. Rxa6 {[%emt 0:0:1]} Bf8 {[%emt 0:0:0]} 41. b5 {[%emt 0:0:2]
} Bg7 {[%emt 0:0:24]} 42. Ra7+ {[%emt 0:0:2]} 1-0